bitfinex-derivatives/quotes_ETHF0:USTF0_20251009
["timestamp","ask_amount","ask_price","bid_price","bid_amount"]
[1760021244629,4.23216553,4327.1,4327.0,42.8313]
[1760021244927,0.00215696,4327.2,4327.1,2.0313]
[1760021245528,0.41581,4327.1,4327.0,42.8313]
[1760021245826,0.41588,4326.4,4326.3,2.0313]
[1760021246326,0.00215696,4327.2,4326.6,0.817]
[1760021246528,4.23216553,4326.8,4326.7,5.65495]
[1760021246841,4.23216553,4327.0,4326.8,2.0313]
[1760021247330,0.26915696,4327.2,4326.8,2.0313]
[1760021247525,0.00215696,4327.2,4326.8,0.267]
[1760021247724,0.00215696,4327.2,4327.1,2.0313]
[1760021248035,0.00215696,4327.2,4327.1,2.2983]
[1760021248425,0.00215696,4327.2,4327.1,43.0983]
[1760021248629,0.00215696,4327.2,4327.1,42.8313]
[1760021249535,0.00215696,4327.2,4327.1,43.0983]
[1760021249724,3.2078,4328.5,4327.2,0.817]
[1760021249925,3.2078,4328.5,4327.6,2.0313]
[1760021250126,3.2078,4328.5,4327.8,0.817]
[1760021250323,3.2078,4328.5,4328.4,0.817]
[1760021250531,7.43996553,4328.5,4328.4,43.6483]
[1760021250729,7.85800269,4328.5,4328.4,43.6483]
[1760021251126,7.85800269,4328.5,4327.5,3.2078]
[1760021251127,8.21015716,4328.5,4327.5,3.2078]
[1760021251425,1.03965,4326.7,4326.1,2.0313]
[1760021251624,0.4159,4326.2,4326.1,2.0313]
[1760021251827,0.6869,4326.2,4326.1,2.0313]
[1760021252024,0.271,4326.2,4326.1,2.0313]
[1760021252230,0.4159,4326.3,4326.1,2.0313]
[1760021252429,0.271,4326.2,4326.1,2.0313]
[1760021252830,0.4159,4326.3,4326.1,2.0313]
[1760021253025,0.4159,4326.3,4326.0,0.817]
[1760021253233,0.41591,4326.1,4326.0,2.8483]
[1760021254139,0.68591,4326.1,4326.0,2.8483]
[1760021254832,3.2078,4326.2,4326.0,2.8483]
[1760021255040,3.6237,4326.2,4326.0,0.817]
[1760021255533,3.6237,4326.2,4326.1,2.0313]
[1760021255833,4.1783287,4326.2,4326.1,2.0313]
[1760021256033,3.6237,4326.2,4326.1,2.0313]
[1760021256235,4.44774836,4326.2,4326.1,2.0313]
[1760021256435,0.41595,4325.6,4325.5,9.34e-06]
[1760021256732,0.41601,4325.0,4324.8,0.817]
[1760021256931,0.271,4324.9,4324.8,0.14997]
[1760021257131,0.271,4324.9,4323.8,3.2078]
[1760021257132,0.41608,4324.3,4323.8,3.2078]
[1760021257531,0.68708,4324.3,4323.8,3.2078]
[1760021257837,0.69007905,4324.3,4324.2,0.81877557]
[1760021258229,0.69007905,4324.3,4323.8,3.2078]
[1760021258230,0.41612,4323.9,4323.8,3.2078]
[1760021258438,0.41615,4323.6,4323.5,2.8483]
[1760021259333,0.41615,4323.6,4323.5,2.85112919]
[1760021259734,0.41613,4323.8,4323.5,2.85112919]
[1760021259930,0.41615,4323.7,4323.5,0.00282919]
[1760021260129,0.41615,4323.7,4323.5,9.19e-06]
[1760021260338,0.41619,4323.2,4323.0,0.817]
[1760021260527,0.41619,4323.2,4323.1,2.0313]
[1760021260832,0.68719,4323.2,4323.1,2.0313]
[1760021261035,0.41615,4323.6,4323.1,2.0313]
[1760021261230,3.2078,4323.9,4323.7,2.0313]
[1760021261534,0.271,4323.8,4323.7,2.0313]
[1760021262132,0.82471659,4323.8,4323.1,0.00272343]
[1760021262431,0.41617,4323.4,4323.1,0.00272343]
[1760021262627,0.41617,4323.4,4323.2,2.0025]
[1760021262836,0.272,4323.3,4323.2,2.0025]
[1760021263036,0.00299905,4324.3,4323.7,2.0025]
[1760021263231,0.00299905,4324.3,4323.6,0.8461]
[1760021263435,0.41613,4323.8,4323.7,2.0025]
[1760021263635,0.68813,4323.8,4323.7,2.0025]
[1760021264536,0.00299905,4324.3,4323.7,2.0025]
[1760021264732,0.68809,4324.2,4324.1,2.0025]
[1760021265937,0.00299905,4324.3,4324.1,2.0025]
[1760021266236,0.41907905,4324.3,4324.1,2.0025]
[1760021266434,0.00299905,4324.3,4324.1,2.0025]
[1760021267434,0.68704,4324.8,4324.6,2.0874]
[1760021267635,0.41605,4324.6,4324.5,2.8993]
[1760021268440,0.41605,4324.6,4323.6,2.9335]
[1760021268441,15.40391668,4324.6,4323.6,2.9335]
[1760021268740,0.00250668,4324.6,4324.5,0.8119]
[1760021268939,0.68955668,4324.6,4324.5,2.8993]
[1760021269136,0.00250668,4324.6,4324.5,2.8993]
[1760021269344,0.27350668,4324.6,4324.5,2.8993]
[1760021269537,5.27350668,4324.6,4324.0,2.8993]
[1760021269731,0.4161,4324.1,4324.0,2.8993]
[1760021269930,0.6871,4324.1,4324.0,2.8993]
[1760021270241,0.00250668,4324.6,4324.5,0.8119]
[1760021270440,0.00250668,4324.6,4324.5,2.8993]
[1760021271044,3.62379,4325.3,4325.1,2.0874]
[1760021271341,0.41594,4325.7,4325.2,42.8874]
[1760021271643,0.271,4325.6,4325.5,2.8993]
[1760021271938,0.41592,4326.0,4325.6,2.0874]
[1760021272243,0.41593,4325.9,4325.6,2.3574]
[1760021272446,0.00274369,4326.0,4325.6,2.3574]
[1760021272835,0.41589,4326.3,4325.9,5.2952]
[1760021273038,3.3926,4326.9,4326.6,2.0874]
[1760021273243,0.41585,4326.7,4326.6,2.0874]
[1760021273739,0.41591,4326.1,4326.0,0.8119]
[1760021273941,3.89640191,4326.1,4326.0,0.8137352]
[1760021274334,0.00269191,4326.1,4326.0,0.8137352]
[1760021274836,0.27,4326.5,4326.0,1.2296452]
[1760021275137,3.2078,4326.6,4326.5,0.8119]
[1760021275437,3.89261,4327.2,4327.0,0.8119]
[1760021275639,3.62361,4327.2,4327.0,0.8119]
[1760021275835,3.21066079,4327.2,4327.1,2.0874]
[1760021276237,0.00286079,4327.2,4327.1,2.0874]
[1760021277434,3.2078,4327.8,4327.5,0.8119]
[1760021277633,3.2078,4328.6,4328.5,0.8119]
[1760021277838,3.89247,4328.6,4328.5,2.8993]
[1760021278142,0.41561,4329.2,4329.0,0.8119]
[1760021278340,0.269,4329.1,4329.0,0.8119]
[1760021278742,0.269,4329.1,4328.5,0.8119]
[1760021278743,0.41567,4328.7,4328.5,0.8119]
[1760021279041,0.68467,4328.7,4328.6,2.0874]
[1760021279438,0.269,4328.7,4328.6,2.0874]
[1760021279940,3.21000442,4329.1,4328.5,0.8119]
[1760021280141,3.21000442,4329.1,4328.0,1.0809]
[1760021280142,3.2078,4328.6,4328.0,0.8119]
[1760021280443,0.41565,4328.9,4328.5,0.8119]
[1760021280636,3.21000442,4329.1,4328.6,2.0874]
[1760021280835,0.268,4329.0,4328.6,40.8]
[1760021281041,0.268,4329.0,4328.5,0.8119]
[1760021281042,0.41565,4328.8,4328.7,2.0874]
[1760021281240,0.41565,4328.8,4328.5,0.8119]
[1760021281446,0.41571,4328.1,4328.0,0.8119]
[1760021281638,0.41571,4328.1,4328.0,41.6119]
[1760021281840,0.41576,4327.6,4327.5,0.8119]
[1760021282343,0.41576,4327.6,4327.5,41.6119]
[1760021282539,3.2078,4328.1,4328.0,0.8119]
[1760021282836,0.68371,4328.2,4328.0,0.8119]
[1760021283036,3.2078,4328.7,4328.0,0.8119]
[1760021283241,0.41567,4328.6,4328.5,2.8993]
[1760021283445,0.68367,4328.6,4328.5,43.6993]
[1760021284348,0.68367,4328.6,4328.5,40.12023]
[1760021284545,0.68367,4328.6,4327.3,2.0874]
[1760021284546,2.0125,4328.1,4327.3,2.0874]
[1760021284741,0.41578,4327.4,4327.3,2.0874]
[1760021284940,0.41578,4327.4,4327.0,2.8993]
[1760021284941,0.41581,4327.1,4327.0,2.8993]
[1760021285144,0.41581,4327.1,4326.7,40.83094]
[1760021285145,0.41584,4326.8,4326.7,42.91834]
[1760021285342,0.68284,4326.8,4326.7,42.91834]
[1760021285748,0.68284,4326.8,4326.7,2.11834]
[1760021287753,6.65604,4326.8,4326.7,0.03094]
[1760021288046,0.68284,4326.8,4326.7,0.03094]
[1760021288248,0.41584,4326.8,4326.7,2.11834]
[1760021288449,0.41581,4327.1,4327.0,0.8119]
[1760021288648,0.41578,4327.5,4327.1,0.4158]
[1760021288849,0.266,4327.6,4327.5,0.8119]
[1760021289152,0.266,4327.6,4326.7,0.03094]
[1760021289153,1.03946,4327.4,4326.7,0.03094]
[1760021289343,0.41584,4326.8,4326.7,2.11834]
[1760021289648,0.68284,4326.8,4326.7,2.11834]
[1760021290147,0.267,4326.8,4326.7,2.11834]
[1760021290348,3.2078,4327.4,4326.7,2.11834]
[1760021290550,3.62358,4327.4,4327.2,0.4158]
[1760021290751,0.41578,4327.4,4327.3,2.0874]
[1760021292654,1.03931,4328.1,4327.0,0.8119]
[1760021292655,3.62351,4328.1,4328.0,0.8581]
[1760021292849,3.89051,4328.1,4328.0,2.9333]
[1760021293053,0.68271,4328.1,4328.0,2.9333]
[1760021293245,0.41571,4328.1,4328.0,2.9333]
[1760021293444,3.2078,4328.6,4328.5,0.8581]
[1760021293646,3.4738,4328.6,4328.5,2.9333]
[1760021293853,3.88947,4328.6,4328.5,2.9333]
[1760021294556,0.68167,4328.6,4328.5,2.9333]
[1760021295458,0.41564,4328.9,4328.7,2.0752]
[1760021295749,0.266,4328.8,4328.7,2.0752]
[1760021296154,0.41567,4328.6,4328.5,2.9333]
[1760021296552,0.41567,4328.6,4328.1,42.8752]
[1760021296553,0.4157,4328.2,4328.1,42.8752]
[1760021296753,3.8895,4328.2,4328.1,42.8752]
[1760021297152,0.4157,4328.2,4328.1,42.8752]
[1760021297356,0.6817,4328.2,4328.1,42.8752]
[1760021297552,0.4157,4328.2,4328.1,2.0752]
[1760021298057,0.4157,4328.2,4328.1,42.8752]
[1760021298257,0.265,4328.5,4328.2,2.0752]
[1760021298458,0.265,4328.5,4328.1,40.8]
[1760021298649,0.4157,4328.2,4328.1,42.8752]
[1760021299447,3.2078,4328.7,4328.6,2.0752]
[1760021299648,0.68282442,4329.1,4329.0,2.9333]
[1760021300157,3.89062442,4329.1,4329.0,2.9333]
[1760021300350,3.89062442,4329.1,4329.0,2.0752]
[1760021300750,3.89062442,4329.1,4329.0,2.9333]
[1760021300950,3.62562442,4329.1,4329.0,2.9333]
[1760021301157,3.89062442,4329.1,4329.0,2.9333]
[1760021301350,3.89062442,4329.1,4329.0,2.0752]
[1760021302157,5.91947442,4329.1,4328.1,44.0078]
[1760021302456,0.41571,4328.2,4328.1,40.8]
[1760021302658,0.41571,4328.3,4328.1,40.8]
[1760021303255,0.41571,4328.3,4328.0,4.0659]
[1760021303756,0.60045,4328.8,4328.5,0.8581]
[1760021303961,0.60045,4328.8,4328.5,4.0659]
[1760021304152,0.41566,4328.7,4328.6,2.0752]
[1760021304352,0.41566,4328.7,4328.6,42.8752]
[1760021305450,0.41566,4328.7,4328.6,2.0752]
[1760021305649,0.41572,4328.1,4328.0,0.8581]
[1760021305951,0.67972,4328.1,4327.9,3.2078]
[1760021306461,0.67972,4328.1,4328.0,2.0752]
[1760021306954,0.67972,4328.1,4328.0,2.9333]
[1760021308054,0.67972,4328.1,4328.0,2.0752]
[1760021308658,0.67972,4328.1,4328.0,2.9333]
[1760021308659,0.41572,4328.1,4328.0,2.9333]
[1760021308860,0.67872,4328.1,4328.0,2.9333]
[1760021309055,0.41572,4328.1,4328.0,2.9333]
[1760021309461,0.41566,4328.7,4328.6,2.0752]
[1760021309661,1.23178512,4328.7,4328.6,2.0752]
[1760021310054,1.03918,4328.6,4327.6,2.0752]
[1760021310361,0.41575,4327.7,4327.6,2.0752]
[1760021310755,0.41572,4328.1,4328.0,0.8581]
[1760021311068,0.262,4328.4,4328.0,4.48163]
[1760021311266,0.41571,4328.2,4328.1,2.0752]
[1760021312664,0.41782442,4329.1,4329.0,2.9333]
[1760021313068,1.23264264,4329.1,4329.0,2.9333]
[1760021313471,0.97064264,4329.1,4329.0,2.9333]
[1760021313664,1.23264264,4329.1,4329.0,2.9333]
[1760021313865,1.23264264,4329.1,4329.0,2.0752]
[1760021314167,0.41576,4327.7,4327.6,2.0752]
[1760021314368,0.262,4327.8,4327.7,2.49095]
[1760021314566,0.262,4327.8,4327.7,2.0752]
[1760021315872,3.2078,4328.3,4328.0,0.8581]
[1760021316074,0.41572,4328.1,4328.0,2.9333]
[1760021316270,0.41571,4328.2,4328.1,2.0752]
[1760021316473,0.67671,4328.2,4328.1,2.0752]
[1760021316970,0.4157,4328.3,4328.1,2.0752]
[1760021317172,0.4157,4328.3,4328.1,2.49091]
[1760021317367,0.4157,4328.3,4328.1,2.0752]
[1760021317566,0.41572,4328.1,4328.0,2.9333]
[1760021318772,0.41576,4327.7,4327.5,44.0078]
[1760021319073,0.41576,4327.7,4327.6,2.0752]
[1760021319276,0.41581,4327.1,4327.0,2.9333]
[1760021319472,0.41581,4327.1,4327.0,43.7333]
[1760021319671,0.41581,4327.1,4327.0,2.9333]
[1760021320174,0.41581,4327.1,4327.0,43.7333]
[1760021320370,0.41581,4327.1,4327.0,2.9333]
[1760021321868,0.67581,4327.1,4327.0,2.9333]
[1760021322779,0.26,4327.1,4327.0,2.9333]
[1760021322979,0.41572,4328.1,4328.0,0.7675]
[1760021323175,0.41572,4328.1,4328.0,2.8635]
[1760021323376,3.2078,4328.7,4328.5,0.7675]
[1760021323576,0.26,4328.9,4328.5,2.8635]
[1760021323777,0.41566,4328.7,4328.6,2.096]
[1760021323973,0.26,4328.9,4328.6,2.096]
[1760021324183,0.26,4328.9,4328.5,0.7675]
[1760021324184,0.00220442,4329.1,4329.0,2.8635]
[1760021324375,0.26220442,4329.1,4329.0,2.8635]
[1760021324978,0.41567,4328.6,4328.5,0.7675]
[1760021325182,0.41567,4328.6,4328.0,43.5364]
[1760021325183,0.41572,4328.1,4328.0,43.5364]
[1760021325382,0.67572,4328.1,4327.9,3.2078]
[1760021325680,0.67572,4328.1,4328.0,2.784]
[1760021325880,0.41572,4328.1,4328.0,2.784]
[1760021326079,0.67572,4328.1,4328.0,2.784]
[1760021326880,0.41576,4327.6,4327.5,2.7364]
[1760021327081,0.67476,4327.6,4327.5,1.9689]
[1760021327284,0.259,4327.6,4326.8,1.64291259]
[1760021327478,0.41581,4327.1,4327.0,2.784]
[1760021327785,0.67481,4327.1,4327.0,2.784]
[1760021327983,3.2078,4327.7,4327.1,1.9689]
[1760021328183,3.2078,4327.7,4327.0,0.8151]
[1760021328184,0.67476,4327.6,4327.5,2.784]
[1760021328385,0.41581,4327.1,4327.0,2.784]
[1760021328685,0.67481,4327.1,4327.0,2.784]
[1760021329979,0.259,4327.1,4327.0,2.784]
[1760021330382,0.259,4327.1,4327.0,0.8151]
[1760021330581,0.259,4327.1,4327.0,2.784]
[1760021331187,0.41582,4327.0,4326.8,42.7689]
[1760021331385,0.41582,4327.0,4326.8,1.9689]
[1760021331783,1.75114,4326.8,4326.7,0.03094]
[1760021332289,0.41584,4326.8,4326.7,0.03094]
[1760021332786,0.41584,4326.8,4326.7,1.99984]
[1760021332993,0.67482,4327.0,4326.9,1.9689]
[1760021333687,0.67482,4327.0,4326.7,1.99984]
[1760021333688,0.41584,4326.8,4326.7,1.99984]
[1760021334498,0.67484,4326.8,4326.7,1.99984]
[1760021334788,0.41584,4326.8,4326.7,1.99984]
[1760021334991,0.67384,4326.8,4326.7,1.99984]
[1760021335187,2.00914,4326.8,4326.7,0.03094]
[1760021336593,0.67384,4326.8,4326.7,1.99984]
[1760021338187,0.41584,4326.8,4326.7,1.99984]
[1760021338383,0.67384,4326.8,4326.7,1.99984]
[1760021338692,0.41583,4327.0,4326.9,0.41583]
[1760021338893,0.41583,4326.9,4326.8,1.9689]
[1760021339391,0.67383,4326.9,4326.8,1.9689]
[1760021339986,0.41583,4326.9,4326.8,1.9689]
[1760021340181,0.67383,4326.9,4326.8,1.9689]
[1760021340781,0.67383,4326.9,4326.7,0.03094]
[1760021340982,0.67383,4326.9,4326.8,1.9689]
[1760021341189,0.41583,4326.9,4326.8,1.9689]
[1760021341483,3.3926,4327.5,4326.8,1.9689]
[1760021341484,0.1848,4327.5,4327.4,0.41578]
[1760021341686,1.03908,4329.0,4328.0,0.8151]
[1760021341890,0.41565,4328.8,4328.5,0.8151]
[1760021342093,0.41566,4328.7,4328.6,1.9689]
[1760021342290,1.03931,4328.1,4327.2,1.9689]
[1760021342592,0.41575,4327.7,4327.2,1.9689]
[1760021342783,0.41575,4327.7,4327.6,1.9689]
[1760021342784,0.67375,4327.7,4327.6,1.9689]
[1760021343589,0.41575,4327.7,4327.6,1.9689]
[1760021343784,0.67375,4327.7,4327.6,1.9689]
[1760021344096,0.41579,4327.4,4327.2,1.9689]
[1760021344297,0.258,4327.7,4327.2,1.9689]
[1760021344591,0.41576,4327.6,4327.3,1.9689]
[1760021344794,0.258,4327.7,4327.2,0.4158]
[1760021344994,0.4158,4327.2,4327.1,3.2078]
[1760021345292,0.41576,4327.6,4327.5,0.8151]
[1760021345496,0.41576,4327.6,4327.5,2.784]
[1760021345882,0.41575,4327.7,4327.6,1.9689]
[1760021346592,0.60052,4328.1,4328.0,2.784]
[1760021346788,0.85752,4328.1,4328.0,2.784]
[1760021346994,0.41576,4327.6,4327.5,2.784]
[1760021347189,0.41584,4326.8,4326.5,4.0229]
[1760021347394,0.4159,4326.2,4326.0,0.0018352]
[1760021347694,0.4159,4326.2,4326.0,0.8169352]
[1760021347896,0.257,4326.1,4326.0,0.0018352]
[1760021348890,1.03982,4325.9,4325.0,4.0229]
[1760021349195,0.41599,4325.3,4325.0,4.0229]
[1760021349394,0.41599,4325.3,4325.2,1.9689]
[1760021349595,0.41596,4325.6,4325.2,1.9689]
[1760021349793,6.96110598,4326.4,4325.5,5.9918]
[1760021349794,0.41594,4325.8,4325.5,5.9918]
[1760021349995,0.41584,4326.9,4326.7,0.41585]
[1760021350194,0.41584,4326.9,4326.5,0.8151]
[1760021350195,0.41581,4327.2,4327.0,0.8151]
[1760021350397,3.62355,4327.7,4327.5,1.23087]
[1760021350589,0.60052,4328.1,4328.0,2.784]
[1760021350786,0.1848,4328.1,4328.0,2.784]
[1760021350992,0.0021894,4328.1,4328.0,2.784]
[1760021351294,0.0021894,4328.1,4328.0,1.9689]
[1760021351594,0.0021894,4328.1,4328.0,42.7689]
[1760021351792,0.0021894,4328.1,4328.0,43.584]
[1760021351988,0.2591894,4328.1,4328.0,43.584]
[1760021352192,0.0021894,4328.1,4328.0,43.584]
[1760021352395,0.0021894,4328.1,4328.0,46.7918]
[1760021353398,3.2078,4329.4,4328.6,1.9635]
[1760021353599,0.41565,4328.8,4328.6,1.9635]
[1760021353794,0.256,4328.9,4328.5,4.44587]
[1760021354100,0.41564,4328.9,4328.5,4.44587]
[1760021354294,0.41565,4328.8,4328.5,4.44879745]
[1760021354495,0.41565,4328.8,4328.7,1.9635]
[1760021354895,0.41567,4328.6,4328.5,1.96642745]
[1760021355096,0.41565,4328.8,4328.6,1.9635]
[1760021355303,0.00274003,4328.9,4328.8,1.9635]
[1760021356199,0.00274003,4328.9,4328.8,42.7635]
[1760021357393,0.17965548,4330.6,4328.8,42.7635]
[1760021357394,3.2078,4330.5,4329.5,0.8224]
[1760021357596,3.2078,4331.7,4331.0,1.23783]
[1760021357798,0.41543,4331.2,4331.1,1.9635]
[1760021357999,3.2078,4331.7,4331.5,0.8224]
[1760021358302,0.256,4332.1,4331.6,42.7635]
[1760021358496,0.41536,4331.8,4331.7,1.9635]
[1760021358699,0.0018321,4332.1,4332.0,2.7859]
[1760021359299,0.278,4332.9,4332.0,5.8224]
[1760021359505,0.278,4332.9,4332.1,5.1713]
[1760021359801,0.278,4332.9,4332.1,3.2078]
[1760021359802,0.41531,4332.4,4332.1,3.2078]
[1760021359995,0.41531,4332.4,4332.3,1.9635]
[1760021360195,3.20981066,4332.4,4331.7,1.9635]
[1760021360397,0.41536,4331.8,4331.6,40.80228574]
[1760021360599,0.256,4331.7,4331.6,0.00228574]
[1760021360798,0.256,4331.7,4331.6,1.96578574]
[1760021360994,0.256,4331.7,4331.6,42.76578574]
[1760021361201,0.00201066,4332.4,4332.1,1.9635]
[1760021361406,0.00201066,4332.4,4332.3,5.58661]
[1760021362099,0.00201066,4332.4,4332.3,46.38661]
[1760021362905,0.41527,4332.8,4332.6,1.9635]
[1760021363109,0.255,4333.4,4332.6,1.9635]
[1760021363305,1.87112559,4334.9,4333.3,1.9635]
[1760021363504,1.87112559,4334.9,4334.5,0.8224]
[1760021363697,0.00192979,4334.9,4334.6,1.9635]
[1760021364299,0.00192979,4334.9,4334.8,1.9635]
[1760021364505,0.00192979,4334.9,4334.8,1.96605381]
[1760021365011,3.2078,4335.5,4335.0,0.8224]
[1760021365202,0.41503,4335.3,4335.0,0.8224]
[1760021365503,3.62281,4335.5,4335.1,1.9635]
[1760021365703,3.2078,4335.5,4335.1,1.9635]
[1760021366209,0.41502,4335.4,4335.1,1.9635]
[1760021366508,3.21053609,4335.5,4335.1,1.9635]
[1760021366707,3.21053609,4335.5,4335.0,1.0774]
[1760021366708,0.00273609,4335.5,4335.3,1.9635]
[1760021366904,0.00273609,4335.5,4335.4,0.255]
[1760021367104,0.00273609,4335.5,4335.4,2.2185]
[1760021367703,0.0861,4336.0,4335.5,0.8224]
[1760021367906,3.62279,4335.7,4335.6,1.9635]
[1760021368506,3.62509013,4335.7,4335.6,1.9635]
[1760021368903,0.41501,4335.5,4335.4,40.8]
[1760021369107,0.41504,4335.1,4335.0,2.7859]
[1760021369501,3.62284,4335.1,4335.0,1.9635]
[1760021369702,1.904,4334.9,4333.9,1.9635]
[1760021370007,0.41514,4334.1,4334.0,2.7859]
[1760021370310,0.41514,4334.1,4334.0,1.9635]
[1760021370509,0.41514,4334.1,4334.0,2.7859]
[1760021370706,3.2078,4334.4,4334.0,2.7859]
[1760021370907,3.2078,4334.4,4334.0,0.82474179]
[1760021371107,0.41514,4334.2,4334.1,1.9635]
[1760021371505,3.62292,4334.4,4334.2,1.9635]
[1760021371707,0.41513,4334.3,4334.2,1.9635]
[1760021372106,0.41514,4334.1,4334.0,0.00234179]
[1760021373312,7.31914,4334.1,4334.0,0.00234179]
[1760021373609,0.41529,4332.6,4332.2,1.9635]
[1760021373906,0.254,4333.0,4332.6,1.9635]
[1760021374112,0.41527,4332.7,4332.6,1.9635]
[1760021374411,0.41537,4331.8,4331.6,3.2078]
[1760021374709,0.00208731,4331.8,4331.7,1.9635]
[1760021374911,0.41744731,4331.8,4331.7,1.9635]
[1760021375214,0.00208731,4331.8,4331.7,1.9635]
[1760021377308,0.00208731,4331.8,4331.7,2.2175]
[1760021377807,0.00208731,4331.8,4331.7,1.9635]
[1760021378013,0.00208731,4331.8,4331.7,2.63287]
[1760021378317,0.00208731,4331.8,4331.7,2.2175]
[1760021378513,2.31937,4331.7,4331.6,0.00238355]
[1760021378714,0.41537,4331.7,4331.6,0.00238355]
[1760021378916,2.31937,4331.7,4331.6,0.00238355]
[1760021379110,7.31937,4331.7,4331.6,0.00238355]
[1760021379415,5.41537,4331.7,4331.6,0.00238355]
[1760021379716,0.41537,4331.7,4331.6,0.00238355]
[1760021380014,0.41537,4331.7,4331.6,1.96588355]
[1760021380412,0.25608731,4331.8,4331.6,2.38125355]
[1760021380613,0.25608731,4331.8,4331.6,1.96588355]
[1760021380811,0.25608731,4331.8,4331.7,1.9635]
[1760021381410,0.25608731,4331.8,4331.7,42.7635]
[1760021381608,0.00208731,4331.8,4331.7,42.7635]
[1760021382919,3.2078,4332.4,4332.2,2.0285]
[1760021383214,3.2078,4333.6,4332.9,2.0285]
[1760021383410,0.96390698,4333.5,4333.0,1.47794]
[1760021383713,0.41522,4333.3,4333.1,2.0285]
[1760021383922,0.41804486,4333.3,4333.0,1.0627]
[1760021384114,0.41523,4333.2,4333.1,2.0285]
[1760021384413,0.41804486,4333.3,4333.0,1.0627]
[1760021384616,0.00282486,4333.3,4333.2,2.28303]
[1760021384816,3.2078,4334.1,4334.0,0.8108]
[1760021385118,3.2078,4334.1,4334.0,2.6786]
[1760021385310,3.62294,4334.1,4334.0,2.6786]
[1760021385508,0.41518,4333.7,4333.6,42.6678]
[1760021385909,0.41751358,4333.7,4333.6,42.6678]
[1760021387712,0.55361387,4333.7,4333.6,42.6678]
[1760021387912,0.55361621,4333.7,4333.6,42.6678]
[1760021388121,0.00233358,4333.7,4333.6,42.6678]
[1760021388419,0.55384423,4333.7,4333.6,42.6678]
[1760021389321,0.55384423,4333.7,4333.6,40.8]
[1760021389515,1.9214,4333.0,4331.8,1.8678]
[1760021389723,0.41535,4331.9,4331.8,1.8678]
[1760021390017,0.96661383,4331.9,4331.8,1.8678]
[1760021390517,0.55126383,4331.9,4331.8,1.8678]
[1760021390818,0.253,4332.9,4332.1,1.8678]
[1760021391018,0.55013651,4332.8,4332.1,1.8678]
[1760021391314,0.96541651,4332.7,4332.6,1.8678]
[1760021391619,0.41528,4332.6,4332.5,0.8108]
[1760021392120,0.41528,4332.6,4332.5,2.6786]
[1760021393018,0.41527,4332.8,4332.5,4.0186]
[1760021393320,0.41525,4333.0,4332.9,1.8678]
[1760021393714,0.96335083,4333.0,4332.9,1.8678]
[1760021393919,0.253,4333.4,4332.9,43.08305]
[1760021394117,0.41523,4333.2,4333.0,0.8108]
[1760021394318,0.41523,4333.2,4333.1,1.8678]
[1760021394619,0.96349165,4333.2,4333.1,1.8678]
[1760021395815,1.06148203,4333.2,4333.1,1.8678]
[1760021396022,1.06768412,4333.2,4333.1,1.8678]
[1760021396321,1.07388621,4333.2,4333.1,1.8678]
[1760021396522,0.41528,4332.6,4332.5,2.6786]
[1760021396715,0.41528,4332.6,4332.5,43.4786]
[1760021396910,0.41526,4332.9,4332.5,41.6108]
[1760021397216,0.41523,4333.2,4333.1,1.8678]
[1760021397413,0.41528,4332.6,4332.5,43.4786]
[1760021397816,3.2078,4333.1,4332.5,43.4786]
[1760021398015,0.41528,4332.7,4332.6,1.8678]
[1760021398524,0.43388621,4332.7,4332.6,1.8678]
[1760021398918,0.44008828,4332.7,4332.6,1.8678]
[1760021399312,0.03101035,4332.7,4332.6,5.0756]
[1760021399610,0.252,4333.4,4333.1,1.8678]
[1760021399821,0.96066619,4333.3,4333.1,1.8678]
[1760021400018,1.0381,4333.1,4332.5,0.8108]
[1760021400218,0.41528,4332.6,4332.5,2.6786]
[1760021400419,0.97315827,4332.6,4332.5,2.6786]
[1760021400624,0.01238276,4332.6,4332.5,2.6786]
[1760021401020,0.01238276,4332.6,4332.0,1.22614]
[1760021401021,0.41533,4332.1,4332.0,2.6786]
[1760021402117,0.01858483,4332.1,4332.0,2.6786]
[1760021402318,0.4153,4332.5,4332.1,1.8678]
[1760021402515,0.41529,4332.6,4332.5,0.8108]
[1760021402723,0.41533,4332.1,4332.0,2.6786]
[1760021402926,0.41533,4332.1,4332.0,42.6678]
[1760021403325,1.58369742,4332.1,4331.6,3.21018355]
[1760021403625,0.41536,4331.8,4331.7,1.8678]
[1760021403824,0.41536,4331.8,4331.7,42.6678]
[1760021404020,2.038,4331.7,4331.6,0.00238355]
[1760021404224,2.83417312,4331.7,4331.6,0.00238355]
[1760021404525,0.54517312,4331.7,4331.6,1.87018355]
[1760021404724,0.41536,4331.9,4331.6,1.87018355]
[1760021404924,3.2078,4332.5,4332.1,1.8678]
[1760021405120,0.54489116,4332.4,4332.3,1.8678]
[1760021405320,0.41527,4332.7,4332.5,0.8108]
[1760021405526,0.41527,4332.7,4332.6,1.8678]
[1760021405727,0.95721697,4332.7,4332.6,1.8678]
[1760021405925,0.54194697,4332.7,4332.6,42.6678]
[1760021406120,6.45896936,4333.6,4333.0,0.8108]
[1760021406121,0.41523,4333.2,4333.0,0.8108]
[1760021406322,0.41522,4333.3,4333.1,1.8678]
[1760021406631,0.66719,4333.6,4333.5,0.8108]
[1760021406922,3.2078,4334.1,4333.6,1.8678]
[1760021407127,3.62295,4334.1,4333.6,2.28299]
[1760021407325,0.41516,4334.0,4333.6,2.28299]
[1760021407529,3.2078,4334.1,4333.6,2.28299]
[1760021407530,0.41518,4333.8,4333.6,1.8678]